Workbook

Sheet Sheet1
B2: <Company Name>
B3: Income Statement
B4: For the Period Ending <Date>
D5: <Current Month> | E5: % of Sales | F5: <Prior Year Month> | G5: % of Sales
B6: Revenue
B7: Sales | D7: $91,750 | E7: =D7/$D$13 -> 96.07% | F7: $73,300 | G7: =F7/$F$13 -> 96.07%
B8: Sales Returns | D8: 420.00 | E8: =D8/$D$13 -> 0.44% | F8: 330.00 | G8: =F8/$F$13 -> 0.43%
B9: Sales Discounts | D9: 3,330.00 | E9: 3.49% | F9: 2,665.00 | G9: 3.49%
B10: <Other Revenue> | D10: 0 | E10: 0.00% | F10: 0 | G10: 0.00%
B11: <Other Revenue> | D11: 0 | E11: 0.00% | F11: 0 | G11: 0.00%
B12: <Other Revenue> | D12: 0 | E12: 0.00% | F12: 0 | G12: 0.00%
B13: Net Sales | D13: =SUM(D7:D12) -> $95,500 | E13: =D13/$D$13 -> 100.00% | F13: =SUM(F7:F12) -> $76,295 | G13: 100.00%
B14: Cost of Goods Sold | D14: 70,830.00 | E14: 74.17% | F14: 56,600.00 | G14: 74.19%
B15: Gross Profit | D15: =D13-D14 -> $24,670 | E15: 25.83% | F15: =F13-F14 -> $19,695 | G15: 25.81%
B16: Operating Expenses | G16: 0.00%
B17: Salaries & Wages | D17: $10,400 | E17: =D17/$D$13 -> 10.89% | F17: $8,330 | G17: 10.92%
B18: Depreciation Expenses | D18: 420.00 | E18: =D18/$D$13 -> 0.44% | F18: 330.00 | G18: 0.43%
B19: Office Expenses | D19: 400.00 | E19: 0.42% | F19: 315.00 | G19: 0.41%
B20: Rent Expense | D20: 950.00 | E20: 0.99% | F20: 765.00 | G20: 1.00%
B21: Travel Expenses | D21: 625.00 | E21: 0.65% | F21: 500.00 | G21: 0.66%
B22: Maintenance Expenses | D22: 125.00 | E22: 0.13% | F22: 100.00 | G22: 0.13%
B23: Advertising Expenses | D23: 540.00 | E23: 0.57% | F23: 430.00 | G23: 0.56%
B24: <Other Expense> | D24: 0 | E24: 0.00% | F24: 0 | G24: 0.00%
B25: <Other Expense> | D25: 0 | E25: 0.00% | F25: 0 | G25: 0.00%
B26: <Other Expense> | D26: 0 | E26: 0.00% | F26: 0 | G26: 0.00%
B27: Total Operating Expenses | D27: =SUM(D17:D26) -> $13,460 | E27: 14.09% | F27: =SUM(F17:F26) -> $10,770 | G27: 14.12%
B28: Income From Operations | D28: =D15-D27 -> $11,210 | E28: 11.74% | F28: =F15-F27 -> $8,925 | G28: 11.70%
B29: Interest Income (Expense) | D29: (85.00) | E29: -0.09% | F29: (65.00) | G29: -0.09%
B30: Income Before Income Taxes | D30: =D28+D29 -> $11,125 | E30: 11.65% | F30: =F28+F29 -> $8,860 | G30: 11.61%
B31: Income Tax Expense | D31: 625.00 | E31: 0.65% | F31: 500.00 | G31: 0.66%
B32: Net Income | D32: =D30-D31 -> $10,500 | E32: 10.99% | F32: =F30-F31 -> $8,360 | G32: 10.96%
